fUST/lending_fUST_20250917
["ID","MTS","AMOUNT","RATE_DAILY","PERIOD"]
[385893075,1758109842095,-500.0,0.00022173,2]
[385893076,1758109842104,-500.0,0.00022173,2]
[385893077,1758109842113,-500.0,0.00022191,2]
[385893078,1758109842122,-480.0,0.00022191,3]
[385893079,1758109842131,-482.38488293,0.00022191,3]
[385893080,1758109842140,-503.98419104,0.00022191,3]
[385893081,1758109842149,-480.0,0.00022191,3]
[385893082,1758109842158,-480.0,0.00022191,3]
[385893083,1758109842167,-480.0,0.00022191,3]
[385893084,1758109842176,-480.0,0.00022191,3]
[385893085,1758109842185,-480.0,0.00022191,3]
[385893086,1758109842195,-480.0,0.00022191,3]
[385893087,1758109842204,-480.0,0.00022191,3]
[385893088,1758109842213,-480.0,0.00022191,3]
[385893089,1758109842222,-480.0,0.00022191,3]
[385893090,1758109842231,-276.91,0.00022191,3]
[385893091,1758109842241,-370.11,0.00022191,3]
[385893092,1758109842250,-480.0,0.00022191,3]
[385893093,1758109842260,-480.0,0.00022191,3]
[385893094,1758109842269,-251.88,0.00022191,3]
[385893095,1758109842280,-480.0,0.00022191,3]
[385893096,1758109842288,-480.0,0.00022191,3]
[385893097,1758109842297,-480.0,0.00022191,3]
[385893098,1758109842306,-480.0,0.00022191,3]
[385893099,1758109842315,-480.0,0.00022191,3]
[385893100,1758109842324,-480.0,0.00022191,3]
[385893101,1758109842333,-480.0,0.00022191,3]
[385893102,1758109842437,-480.0,0.00022191,3]
[385893103,1758109842447,-480.0,0.00022191,3]
[385893104,1758109842457,-1768.3,0.00022191,3]
[385893105,1758109842466,-223.08,0.00022191,3]
[385893106,1758109842475,-480.0,0.00022191,3]
[385893107,1758109842484,-244.83,0.00022191,3]
[385893108,1758109842493,-416.33,0.00022191,3]
[385893109,1758109842503,-535.56,0.00022191,3]
[385893110,1758109842512,-611.46,0.00022191,3]
[385893111,1758109842522,-235.73,0.00022191,3]
[385893112,1758109842532,-480.0,0.00022191,3]
[385893113,1758109842540,-480.0,0.00022191,3]
[385893114,1758109842550,-480.0,0.00022191,3]
[385893115,1758109842559,-480.0,0.00022191,3]
[385893116,1758109842568,-642.43,0.00022191,3]
[385893117,1758109842578,-238.7117201,0.00022191,3]
[385893118,1758109842587,-621.32,0.00022191,3]
[385893119,1758109842596,-480.0,0.00022191,3]
[385893120,1758109842606,-480.0,0.00022191,3]
[385893121,1758109842615,-480.0,0.00022191,3]
[385893122,1758109842624,-480.0,0.00022191,3]
[385893123,1758109842634,-480.0,0.00022191,3]
[385893124,1758109842644,-480.0,0.00022191,3]
[385893125,1758109842653,-869.36,0.00022191,3]
[385893126,1758109842663,-480.0,0.00022191,3]
[385893127,1758109842673,-970.17,0.00022191,3]
[385893128,1758109842684,-480.0,0.00022191,3]
[385893130,1758109842693,-480.0,0.00022191,3]
[385893131,1758109842702,-480.0,0.00022191,3]
[385893132,1758109842712,-486.97204056,0.00022191,3]
[385893133,1758109842721,-677.93,0.00022191,3]
[385893134,1758109842731,-2275.27,0.00022191,3]
[385893135,1758109842741,-157.37,0.00022191,3]
[385893137,1758109842751,-863.52,0.00022191,3]
[385893138,1758109842760,-480.0,0.00022191,3]
[385893139,1758109842770,-480.0,0.00022191,3]
[385893140,1758109842780,-661.98,0.00022191,3]
[385893141,1758109842789,-1036.79,0.00022191,3]
[385893142,1758109842798,-480.0,0.00022191,3]
[385893143,1758109842808,-692.59,0.00022191,3]
[385893144,1758109842817,-480.0,0.00022191,3]
[385893145,1758109842826,-206.23,0.00022191,3]
[385893146,1758109842836,-480.0,0.00022191,3]
[385893147,1758109842846,-480.0,0.00022191,3]
[385893148,1758109842861,-480.0,0.00022191,3]
[385893149,1758109842871,-480.0,0.00022191,3]
[385893150,1758109842881,-215.69,0.00022191,3]
[385893151,1758109842890,-480.0,0.00022191,3]
[385893152,1758109842899,-480.0,0.00022191,3]
[385893153,1758109842909,-480.0,0.00022191,3]
[385893154,1758109842918,-480.0,0.00022191,3]
[385893155,1758109842927,-480.0,0.00022191,3]
[385893156,1758109842936,-480.0,0.00022191,3]
[385893157,1758109842946,-480.0,0.00022191,3]
[385893158,1758109842955,-3048.09,0.00022191,3]
[385893159,1758109842964,-480.0,0.00022191,3]
[385893160,1758109842973,-859.81,0.00022191,3]
[385893161,1758109842983,-525.43,0.00022191,3]
[385893162,1758109842991,-480.0,0.00022191,3]
[385893163,1758109843001,-597.94,0.00022191,3]
[385893165,1758109843010,-480.0,0.00022191,3]
[385893166,1758109843020,-480.0,0.00022191,3]
[385893167,1758109843030,-480.0,0.00022191,3]
[385893168,1758109843039,-480.0,0.00022191,3]
[385893169,1758109843048,-480.0,0.00022191,3]
[385893171,1758109843057,-480.0,0.00022191,3]
[385893173,1758109843066,-480.0,0.00022191,3]
[385893175,1758109843076,-480.0,0.00022191,3]
[385893177,1758109843085,-480.0,0.00022191,3]
[385893179,1758109843094,-480.0,0.00022191,2]
[385893181,1758109843103,-552.98,0.00022191,3]
[385893183,1758109843112,-480.0,0.00022191,3]
[385893185,1758109843121,-1302.23,0.00022191,3]
[385893187,1758109843130,-480.0,0.00022191,3]
[385893189,1758109843139,-480.0,0.00022191,3]
[385893191,1758109843148,-480.0,0.00022191,3]
[385893193,1758109843158,-480.0,0.00022191,3]
[385893195,1758109843167,-480.0,0.00022191,3]
[385893197,1758109843175,-1195.29,0.00022191,3]
[385893199,1758109843185,-480.0,0.00022191,3]
[385893201,1758109843194,-480.0,0.00022191,3]
[385893203,1758109843202,-480.0,0.00022191,3]
[385893205,1758109843212,-480.0,0.00022191,3]
[385893207,1758109843221,-480.0,0.00022191,3]
[385893209,1758109843231,-480.0,0.00022191,3]
[385893210,1758109843240,-10592.81255375,0.000223,2]
[385893212,1758109843249,-600.0,0.00022333,20]
[385893214,1758109843259,-25360.14243128,0.00022365,3]
[385893216,1758109843268,-378.40262254,0.00022365,2]
[385893218,1758109843279,-8255.76457393,0.00022365,2]
[385893220,1758109843288,-180.58015091,0.00022374,2]
[385893222,1758109843298,-632.13085573,0.00022457,2]
[385893224,1758109843307,-500.0,0.00022465,2]
[385893226,1758109843316,-210.47691919,0.00022465,3]
[385893228,1758109843326,-309.66,0.00022465,3]
[385893230,1758109843335,-429.02,0.00022465,3]
[385893232,1758109843344,-480.0,0.00022465,3]
[385893234,1758109843353,-480.0,0.00022465,3]
[385893235,1758109843362,-480.0,0.00022465,3]
[385893236,1758109843371,-480.0,0.00022465,3]
[385893237,1758109843380,-480.0,0.00022465,3]
[385893238,1758109843389,-480.0,0.00022465,3]
[385893239,1758109843398,-480.0,0.00022465,3]
[385893240,1758109843408,-480.0,0.00022465,3]
[385893241,1758109843417,-480.0,0.00022465,3]
[385893242,1758109843428,-500.0,0.00022465,5]
[385893243,1758109843443,-480.0,0.00022465,3]
[385893244,1758109843453,-480.0,0.00022465,3]
[385893245,1758109843463,-1768.3,0.00022465,3]
[385893246,1758109843472,-480.0,0.00022465,3]
[385893247,1758109843482,-535.56,0.00022465,3]
[385893248,1758109843492,-480.0,0.00022465,3]
[385893249,1758109843502,-429.61,0.00022465,3]
[385893250,1758109843512,-480.0,0.00022465,3]
[385893251,1758109843521,-642.43,0.00022465,3]
[385893252,1758109843532,-621.32,0.00022465,3]
[385893253,1758109843542,-480.0,0.00022465,3]
[385893254,1758109843552,-164.93,0.00022465,3]
[385893255,1758109843561,-869.36,0.00022465,3]
[385893256,1758109843571,-970.17,0.00022465,3]
[385893257,1758109843585,-480.0,0.00022465,3]
[385893258,1758109843596,-480.0,0.00022465,3]
[385893260,1758109843605,-677.93,0.00022465,3]
[385893261,1758109843614,-2275.27,0.00022465,3]
[385893263,1758109843623,-863.52,0.00022465,3]
[385893265,1758109843632,-480.0,0.00022465,3]
[385893266,1758109843642,-1036.79,0.00022465,3]
[385893267,1758109843651,-661.98,0.00022465,3]
[385893268,1758109843661,-480.0,0.00022465,3]
[385893270,1758109843670,-692.59,0.00022465,3]
[385893272,1758109843680,-480.0,0.00022465,3]
[385893274,1758109843689,-407.89,0.00022465,3]
[385893276,1758109843699,-480.0,0.00022465,3]
[385893278,1758109843708,-480.0,0.00022465,3]
[385893280,1758109843718,-480.0,0.00022465,3]
[385893282,1758109843727,-480.0,0.00022465,3]
[385893284,1758109843736,-480.0,0.00022465,3]
[385893286,1758109843745,-480.0,0.00022465,3]
[385893288,1758109843754,-3048.09,0.00022465,3]
[385893290,1758109843764,-480.0,0.00022465,3]
[385893292,1758109843774,-859.81,0.00022465,3]
[385893293,1758109843783,-480.0,0.00022465,3]
[385893295,1758109843793,-458.18,0.00022465,3]
[385893297,1758109843802,-516.42,0.00022465,3]
[385893299,1758109843812,-480.0,0.00022465,3]
[385893301,1758109843821,-480.0,0.00022465,3]
[385893303,1758109843831,-222.92,0.00022465,3]
[385893305,1758109843841,-552.98,0.00022465,3]
[385893307,1758109843853,-480.0,0.00022465,3]
[385893309,1758109843862,-1302.23,0.00022465,3]
[385893311,1758109843871,-480.0,0.00022465,3]
[385893313,1758109843881,-480.0,0.00022465,3]
[385893315,1758109843890,-1195.29,0.00022465,3]
[385893317,1758109843902,-480.0,0.00022465,3]
[385893319,1758109843911,-153.96,0.00022465,3]
[385893321,1758109843921,-480.0,0.00022465,3]
[385893323,1758109843931,-480.0,0.00022465,3]
[385893325,1758109843941,-327.74,0.00022465,3]
[385893327,1758109843953,-1002.30528819,0.00022521,2]
[385893329,1758109843962,-1000.0,0.00022521,2]
[385893331,1758109843972,-836.22939473,0.00022521,2]
[385893332,1758109843981,-1000.0,0.00022521,2]
[385893333,1758109843990,-378.40262254,0.00022639,2]
[385893334,1758109843999,-1058.64574985,0.00022696,2]
[385893335,1758109844008,-586.38633723,0.00022712,2]
[385893336,1758109844018,-1000.0,0.00022721,2]
[385893337,1758109844028,-1000.0,0.00022721,2]
[385893338,1758109844038,-1000.0,0.00022721,2]
[385893339,1758109844047,-168.0,0.00022731,2]
[385893340,1758109844056,-500.0,0.00022739,2]
[385893341,1758109844065,-480.0,0.00022739,3]
[385893342,1758109844074,-480.0,0.00022739,3]
[385893343,1758109844084,-286.53,0.00022739,3]
[385893344,1758109844094,-446.95,0.00022739,3]
[385893345,1758109844104,-387.52,0.00022739,3]
[385893346,1758109844113,-480.0,0.00022739,3]
[385893347,1758109844122,-480.0,0.00022739,3]
[385893348,1758109844132,-480.0,0.00022739,3]
[385893349,1758109844141,-233.98,0.00022739,3]
[385893350,1758109844151,-480.0,0.00022739,3]
[385893351,1758109844160,-1768.3,0.00022739,3]
[385893352,1758109844169,-284.44,0.00022739,3]
[385893353,1758109844178,-480.0,0.00022739,3]
[385893354,1758109844188,-480.0,0.00022739,3]
[385893355,1758109844197,-642.43,0.00022739,3]
[385893356,1758109844207,-621.32,0.00022739,3]
[385893357,1758109844216,-480.0,0.00022739,3]
[385893358,1758109844225,-869.36,0.00022739,3]
[385893359,1758109844235,-970.17,0.00022739,3]
[385893360,1758109844245,-480.0,0.00022739,3]
[385893361,1758109844254,-480.0,0.00022739,3]
[385893362,1758109844263,-677.93,0.00022739,3]
[385893363,1758109844274,-2275.27,0.00022739,3]
[385893364,1758109844284,-863.52,0.00022739,3]
[385893365,1758109844293,-480.0,0.00022739,3]
[385893366,1758109844303,-1036.79,0.00022739,3]
[385893367,1758109844312,-661.98,0.00022739,3]
[385893368,1758109844322,-480.0,0.00022739,3]
[385893369,1758109844331,-692.59,0.00022739,3]
[385893370,1758109844341,-597.94,0.00022739,3]
[385893371,1758109844351,-480.0,0.00022739,3]
[385893372,1758109844361,-427.7499003,0.00022739,3]
[385893373,1758109844432,-94.5100997,0.00022739,3]
[385893374,1758109844442,-480.0,0.00022739,3]
[385893375,1758109844451,-480.0,0.00022739,3]
[385893376,1758109844461,-480.0,0.00022739,3]
[385893377,1758109844470,-480.0,0.00022739,3]
[385893378,1758109844480,-3048.09,0.00022739,3]
[385893379,1758109844489,-480.0,0.00022739,3]
[385893380,1758109844499,-859.81,0.00022739,3]
[385893381,1758109844508,-480.0,0.00022739,3]
[385893382,1758109844517,-480.0,0.00022739,3]
[385893383,1758109844528,-6693.84511806,0.00022739,3]
[385893384,1758109844568,-488.14226077,0.00021917,2]
[385893385,1758109844578,-484.44488194,0.00022739,3]
[385893386,1758109844588,-480.0,0.00022739,3]
[385893387,1758109844597,-81.57737731,0.00022739,3]
[385893388,1758109844609,-471.40262269,0.00022739,3]
[385893389,1758109844618,-480.0,0.00022739,3]
[385893390,1758109844627,-1302.23,0.00022739,3]
[385893391,1758109844638,-306.48,0.00022739,3]
[385893392,1758109844647,-480.0,0.00022739,3]
[385893393,1758109844657,-1195.29,0.00022739,3]
[385893394,1758109844666,-480.0,0.00022739,3]
[385893395,1758109844676,-480.0,0.00022739,3]
[385893396,1758109844685,-480.0,0.00022739,3]
[385893397,1758109844694,-977.0,0.00022788,2]
[385893398,1758109844703,-2157.0,0.00022788,2]
[385893399,1758109844713,-634.0,0.00022788,2]
[385893400,1758109844723,-1631.27,0.00022796,2]
[385893401,1758109844732,-168.0,0.00022894,2]
[385893402,1758109844741,-378.40262254,0.00022913,2]
[385893403,1758109844750,-217.90857035,0.00023,3]
[385893404,1758109844760,-500.0,0.00023013,2]
[385893405,1758109844769,-459.99,0.00023013,5]
[385893406,1758109844778,-480.0,0.00023013,3]
[385893407,1758109844788,-480.0,0.00023013,3]
[385893408,1758109844797,-383.50247309,0.00023013,3]
[385893409,1758109845095,-96.49752691,0.00023013,3]
[385893410,1758109845104,-480.0,0.00023013,3]
[385893411,1758109845113,-408.39,0.00023013,3]
[385893412,1758109845122,-1768.3,0.00023013,3]
[385893413,1758109845132,-480.0,0.00023013,3]
[385893414,1758109845141,-480.0,0.00023013,3]
[385893415,1758109845150,-642.43,0.00023013,3]
[385893416,1758109845159,-621.32,0.00023013,3]
[385893417,1758109845168,-480.0,0.00023013,3]
[385893418,1758109845178,-970.17,0.00023013,3]
[385893419,1758109845187,-869.36,0.00023013,3]
[385893420,1758109845197,-480.0,0.00023013,3]
[385893421,1758109845206,-480.0,0.00023013,3]
[385893422,1758109845215,-677.93,0.00023013,3]
[385893423,1758109845224,-2275.27,0.00023013,3]
[385893424,1758109845234,-863.52,0.00023013,3]
[385893425,1758109845243,-480.0,0.00023013,3]
[385893426,1758109845252,-1036.79,0.00023013,3]
[385893427,1758109845261,-661.98,0.00023013,3]
[385893428,1758109845270,-480.0,0.00023013,3]
[385893429,1758109845280,-692.59,0.00023013,3]
[385893430,1758109845289,-480.0,0.00023013,3]
[385893431,1758109845298,-50.04671309,0.00023013,3]
[385893437,1758109846197,-400.17841457,0.00021917,2]
[385893438,1758109846207,-429.95328691,0.00023013,3]
[385893439,1758109846217,-278.33,0.00023013,3]
[385893440,1758109846226,-218.79,0.00023013,3]
[385893441,1758109846235,-480.0,0.00023013,3]
[385893442,1758109846244,-94.10789605,0.00023013,3]
[385893443,1758109846257,-385.89210395,0.00023013,3]
[385893444,1758109846267,-614.10789605,0.00023013,3]
[385893445,1758109846301,-2433.98210395,0.00023013,3]
[385893446,1758109846310,-859.81,0.00023013,3]
[385893447,1758109846318,-181.81,0.00023013,3]
[385893448,1758109846327,-366.87513753,0.00023013,3]
[385893526,1758111032562,-844.56,0.00021713,2]
[385893528,1758111032572,-254.19568196,0.000218,2]
[385893530,1758111032582,-300.0,0.00021815,2]
[385893532,1758111032591,-1200.0,0.00021815,2]
[385893534,1758111032601,-300.0,0.00021815,2]
[385893536,1758111032611,-1200.0,0.00021816,2]
[385893538,1758111032621,-3715.50092198,0.00021816,2]
[385893540,1758111032630,-12589.29137934,0.00021817,2]
[385893542,1758111032640,-1648.42671846,0.00021817,2]
[385893544,1758111032650,-171.10264636,0.00021817,2]
[385893546,1758111032660,-2182.91186408,0.00021885,2]
[385893548,1758111032669,-468.90513249,0.00021886,2]
[385893555,1758111032719,-928.04306198,0.00021886,2]
[385893606,1758111038254,-251.47852398,0.00021886,2]
[385893607,1758111038263,-320.47808265,0.00021907,3]
[385893608,1758111038275,-484.42076106,0.00021907,3]
[385893609,1758111038285,-1029.90528088,0.00021907,3]
[385893610,1758111038296,-421.96587541,0.00021907,3]
[385893611,1758111038305,-1128.38,0.00021907,3]
[385893612,1758111038314,-274.60415568,0.00021907,3]
[385893613,1758111038360,-289.58584432,0.00021907,3]
[385893614,1758111038369,-282.1,0.00021907,3]
[385893615,1758111038378,-846.31,0.00021907,3]
[385893616,1758111038387,-345.74107921,0.00021916,2]
[385893617,1758111038397,-197.91861119,0.00021916,2]
[385893618,1758111038406,-590.19096341,0.00021916,2]
[385893619,1758111038415,-1000.0,0.00021916,2]
[385893620,1758111038425,-1000.0,0.00021916,2]
[385893621,1758111038435,-1000.0,0.00021916,2]
[385893622,1758111038445,-1000.0,0.00021916,2]
[385893623,1758111038454,-1000.0,0.00021916,2]
[385893624,1758111038463,-1000.0,0.00021916,2]
[385893625,1758111038472,-1000.0,0.00021916,2]
[385893626,1758111038481,-1000.0,0.00021916,2]
[385893627,1758111038490,-484.11745159,0.00021917,2]
[385893628,1758111038499,-480.0,0.00021917,2]
[385893629,1758111038508,-482.09526696,0.00021917,2]
[385893630,1758111038518,-481.54378154,0.00021917,2]
[385893631,1758111038527,-266.33135434,0.00021917,2]
[385893632,1758111038536,-482.47650042,0.00021917,2]
[385893633,1758111038546,-480.0,0.00021917,2]
[385893634,1758111038554,-480.0,0.00021917,2]
[385893635,1758111038563,-482.03666702,0.00021917,2]
[385893636,1758111038572,-480.0,0.00021917,2]
[385893637,1758111038581,-437.88048952,0.00021917,2]
[385893638,1758111038590,-480.0,0.00021917,2]
[385893639,1758111038599,-480.0,0.00021917,2]
[385893640,1758111038608,-328.78798777,0.00021917,2]
[385893641,1758111038617,-480.0,0.00021917,2]
[385893642,1758111038626,-485.31482628,0.00021917,2]
[385893643,1758111038635,-480.0,0.00021917,2]
[385893644,1758111038644,-480.0,0.00021917,2]
[385893645,1758111038655,-480.0,0.00021917,2]
[385893646,1758111038667,-480.0,0.00021917,2]
[385893647,1758111038679,-480.0,0.00021917,2]
[385893648,1758111038691,-480.0,0.00021917,2]
[385893649,1758111038703,-480.0,0.00021917,2]
[385893650,1758111038715,-515.27704918,0.00021917,2]
[385893651,1758111038726,-480.0,0.00021917,2]
[385893652,1758111038737,-480.0,0.00021917,2]
[385893653,1758111038748,-480.0,0.00021917,2]
[385893654,1758111038759,-439.4602389,0.00021917,2]
[385893655,1758111038771,-480.0,0.00021917,2]
[385893656,1758111038781,-480.0,0.00021917,2]
[385893657,1758111038793,-480.0,0.00021917,2]
[385893658,1758111038804,-480.0,0.00021917,2]
[385893659,1758111038816,-480.93989399,0.00021917,2]
[385893660,1758111038827,-485.88608545,0.00021917,2]
[385893661,1758111038837,-481.9860033,0.00021917,2]
[385893662,1758111038848,-480.0,0.00021917,2]
[385893663,1758111038860,-482.31474624,0.00021917,2]
[385893664,1758111038872,-484.97180734,0.00021917,2]
[385893665,1758111038884,-480.0,0.00021917,2]
[385893666,1758111038895,-371.2664348,0.00021917,2]
[385893667,1758111038905,-482.95973527,0.00021917,2]
[385893668,1758111038917,-480.0,0.00021917,2]
[385893669,1758111038929,-480.0,0.00021917,2]
[385893670,1758111038940,-480.0,0.00021917,2]
[385893671,1758111038952,-480.0,0.00021917,2]
[385893672,1758111038963,-480.0,0.00021917,2]
[385893673,1758111038975,-484.42204592,0.00021917,2]
[385893674,1758111038986,-480.0,0.00021917,2]
[385893675,1758111038998,-464.43904619,0.00021917,2]
[385893676,1758111039009,-480.0,0.00021917,2]
[385893677,1758111039019,-358.28956709,0.00021917,2]
[385893678,1758111039030,-480.0,0.00021917,2]
[385893679,1758111039040,-481.62186975,0.00021917,2]
[385893680,1758111039049,-515.21136787,0.00021917,2]
[385893681,1758111039060,-480.0,0.00021917,2]
[385893682,1758111039070,-480.0,0.00021917,2]
[385893683,1758111039081,-480.0,0.00021917,2]
[385893684,1758111039091,-480.46311228,0.00021917,2]
[385893685,1758111039102,-494.00984957,0.00021917,2]
[385893686,1758111039113,-500.0,0.00021917,2]
[385893687,1758111039125,-480.0,0.00021917,2]
[385893688,1758111039137,-433.45742216,0.00021917,2]
[385893689,1758111039148,-480.0,0.00021917,2]
[385893690,1758111039160,-480.0,0.00021917,2]
[385893691,1758111039171,-480.0,0.00021917,2]
[385893692,1758111039182,-480.0,0.00021917,2]
[385893693,1758111039193,-474.87444054,0.00021917,2]
[385893694,1758111039205,-480.0,0.00021917,2]
[385893695,1758111039216,-480.0,0.00021917,2]
[385893696,1758111039226,-480.88709007,0.00021917,2]
[385893697,1758111039236,-480.0,0.00021917,2]
[385893698,1758111039246,-480.0,0.00021917,2]
[385893699,1758111039256,-480.0,0.00021917,2]
[385893700,1758111039267,-501.42326297,0.00021917,2]
[385893701,1758111039278,-480.21662578,0.00021917,2]
[385893702,1758111039289,-480.0,0.00021917,2]
[385893703,1758111039302,-480.0,0.00021917,2]
[385893704,1758111039313,-480.0,0.00021917,2]
[385893705,1758111039325,-483.82385527,0.00021917,2]
[385893706,1758111039335,-480.0,0.00021917,2]
[385893707,1758111039344,-480.0,0.00021917,2]
[385893708,1758111039355,-480.0,0.00021917,2]
[385893709,1758111039366,-1000.0,0.00021917,2]
[385893710,1758111039377,-480.0,0.00021917,2]
[385893711,1758111039388,-480.0,0.00021917,2]
[385893712,1758111039399,-488.30001383,0.00021917,2]
[385893713,1758111039410,-480.0,0.00021917,2]
[385893714,1758111039420,-480.4264422,0.00021917,2]
[385893715,1758111039431,-480.0,0.00021917,2]
[385893716,1758111039441,-480.0,0.00021917,2]
[385893717,1758111039452,-480.0,0.00021917,2]
[385893718,1758111039462,-480.0,0.00021917,2]
[385893719,1758111039473,-480.0,0.00021917,2]
[385893720,1758111039484,-480.0,0.00021917,2]
[385893721,1758111039494,-480.0,0.00021917,2]
[385893722,1758111039505,-480.0,0.00021917,2]
[385893723,1758111039516,-480.0,0.00021917,2]
[385893724,1758111039528,-480.0,0.00021917,2]
[385893725,1758111039538,-284.31910036,0.00021917,2]
[385893726,1758111039548,-480.0,0.00021917,2]
[385893727,1758111039559,-480.0,0.00021917,2]
[385893728,1758111039570,-500.0,0.00021917,2]
[385893729,1758111039580,-500.0,0.00021917,2]
[385893730,1758111039591,-480.0,0.00021917,2]
[385893731,1758111039601,-317.79906068,0.00021917,2]
[385893732,1758111039611,-480.0,0.00021917,2]
[385893733,1758111039621,-480.0,0.00021917,2]
[385893734,1758111039632,-480.0,0.00021917,2]
[385893735,1758111039643,-480.0,0.00021917,2]
[385893736,1758111039655,-480.0,0.00021917,2]
[385893737,1758111039667,-480.0,0.00021917,2]
[385893738,1758111039682,-480.0,0.00021917,2]
[385893739,1758111039692,-480.0,0.00021917,2]
[385893740,1758111039702,-480.0,0.00021917,2]
[385893741,1758111039713,-480.0,0.00021917,2]
[385893742,1758111039723,-480.0,0.00021917,2]
[385893743,1758111039734,-480.0,0.00021917,2]
[385893744,1758111039745,-480.0,0.00021917,2]
[385893745,1758111039757,-480.0,0.00021917,2]
[385893746,1758111039767,-480.0,0.00021917,2]
[385893747,1758111039778,-480.0,0.00021917,2]
[385893748,1758111039790,-480.0,0.00021917,2]
[385893749,1758111039801,-483.80488509,0.00021917,2]
[385893750,1758111039812,-480.0,0.00021917,2]
[385893751,1758111039822,-480.0,0.00021917,2]
[385893752,1758111039834,-480.0,0.00021917,2]
[385893753,1758111039846,-480.0,0.00021917,2]
[385893754,1758111039858,-480.0,0.00021917,2]
[385893755,1758111039869,-480.0,0.00021917,2]
[385893756,1758111039880,-480.0,0.00021917,2]
[385893757,1758111039890,-480.0,0.00021917,2]
[385893758,1758111039901,-480.0,0.00021917,2]
[385893759,1758111039912,-480.0,0.00021917,2]
[385893760,1758111039923,-483.17349147,0.00021917,2]
[385893762,1758111039933,-488.04128985,0.00021917,2]
[385893764,1758111039944,-482.58620162,0.00021917,2]
[385893765,1758111039955,-480.0,0.00021917,2]
[385893766,1758111039966,-480.0,0.00021917,2]
[385893767,1758111039978,-480.0,0.00021917,2]
[385893768,1758111039989,-480.0,0.00021917,2]
[385893769,1758111040000,-576.55,0.00021917,2]
[385893770,1758111040011,-176.3067571,0.00021917,2]
[385893771,1758111040156,-588.94,0.00021917,2]
[385893772,1758111040170,-220.63003307,0.00021917,2]
[385893773,1758111040180,-480.0,0.00021917,2]
[385893774,1758111040190,-482.51544923,0.00021917,2]
[385893775,1758111040200,-448.30601928,0.00021917,2]
[385893776,1758111040209,-480.0,0.00021917,2]
[385893777,1758111040218,-480.0,0.00021917,2]
[385893778,1758111040227,-480.0,0.00021917,2]
[385893779,1758111040238,-480.0,0.00021917,2]
[385893781,1758111040247,-480.0,0.00021917,2]
[385893782,1758111040256,-579.5035496,0.00021917,2]
[385893783,1758111040265,-480.0,0.00021917,2]
[385893785,1758111040274,-480.0,0.00021917,2]
[385893787,1758111040284,-480.0,0.00021917,2]
[385893788,1758111040293,-480.0,0.00021917,2]
[385893790,1758111040302,-480.0,0.00021917,2]
[385893792,1758111040311,-529.25235228,0.00021917,2]
[385893794,1758111040320,-480.0,0.00021917,2]
[385893796,1758111040329,-621.16213892,0.00021917,2]
[385893798,1758111040339,-468.44221514,0.00021917,2]
[385893800,1758111040348,-480.0,0.00021917,2]
[385893802,1758111040357,-1871.26,0.00021917,2]
[385893804,1758111040367,-510.20022224,0.00021917,2]
[385893806,1758111040376,-517.9129086,0.00021917,2]